[Event "Titled Tuesday Blitz October 18 Late 2022"]
[White "Onslow, Alfie"]
[Black "Karas, Marek"]
[WhiteFideId "436976"]
[BlackFideId "14928558"]
[WhiteElo "2015"]
[BlackElo "2220"]
[Result "0-1"]
[Round "03"]
[TimeControl "180+1"]
[Date "2022.10.19"]
[WhiteClock "0:00:04"]
[BlackClock "0:00:40"]

1. e4 {[%clk 0:03:00]}  c5 {[%clk 0:02:56]} 2. Nc3 {[%clk 0:02:55]}  a6 {[%clk 0:02:56]} 3. Nf3 {[%clk 0:02:47]}  e6 {[%clk 0:02:55]} 4. g3 {[%clk 0:02:45]}  b5 {[%clk 0:02:54]} 5. Bg2 {[%clk 0:02:45]}  Bb7 {[%clk 0:02:54]} 6. O-O {[%clk 0:02:45]}  d6 {[%clk 0:02:53]} 7. d4 {[%clk 0:02:45]}  cxd4 {[%clk 0:02:53]} 8. Nxd4 {[%clk 0:02:45]}  Nf6 {[%clk 0:02:54]} 9. a3 {[%clk 0:02:43]}  Qc7 {[%clk 0:02:54]} 10. Re1 {[%clk 0:02:39]}  Be7 {[%clk 0:02:53]} 11. Be3 {[%clk 0:02:33]}  Nc6 {[%clk 0:02:53]} 12. Nxc6 {[%clk 0:02:29]}  Bxc6 {[%clk 0:02:54]} 13. Bd4 {[%clk 0:02:29]}  O-O {[%clk 0:02:53]} 14. h3 {[%clk 0:02:25]}  Qb7 {[%clk 0:02:50]} 15. Qd3 {[%clk 0:02:22]}  Nd7 {[%clk 0:02:49]} 16. b4 {[%clk 0:02:11]}  Ne5 {[%clk 0:02:49]} 17. Bxe5 {[%clk 0:02:10]}  dxe5 {[%clk 0:02:50]} 18. g4 {[%clk 0:01:59]}  Rfd8 {[%clk 0:02:48]} 19. Qg3 {[%clk 0:02:00]}  Qc7 {[%clk 0:02:44]} 20. Nd1 {[%clk 0:01:49]}  Bb7 {[%clk 0:02:40]} 21. Ne3 {[%clk 0:01:46]}  Qc3 {[%clk 0:02:35]} 22. h4 {[%clk 0:01:42]}  Rac8 {[%clk 0:02:32]} 23. g5 {[%clk 0:01:42]}  a5 {[%clk 0:02:19]} 24. bxa5 {[%clk 0:01:26]}  Bxa3 {[%clk 0:02:19]} 25. h5 {[%clk 0:01:16]}  Bb2 {[%clk 0:02:09]} 26. Rab1 {[%clk 0:01:12]}  Qxa5 {[%clk 0:02:03]} 27. g6 {[%clk 0:01:08]}  fxg6 {[%clk 0:02:01]} 28. hxg6 {[%clk 0:01:09]}  h6 {[%clk 0:02:01]} 29. Red1 {[%clk 0:00:55]}  Bd4 {[%clk 0:01:57]} 30. Qg4 {[%clk 0:00:51]}  Re8 {[%clk 0:01:47]} 31. Bh3 {[%clk 0:00:38]}  Bxe3 {[%clk 0:01:28]} 32. fxe3 {[%clk 0:00:39]}  Rxc2 {[%clk 0:01:25]} 33. Rd7 {[%clk 0:00:16]}  Qb6 {[%clk 0:01:12]} 34. Qf3 {[%clk 0:00:09]}  Rf8 {[%clk 0:00:57]} 35. Rf7 {[%clk 0:00:08]}  Rcc8 {[%clk 0:00:52]} 36. Rxb7 {[%clk 0:00:07]}  Qxb7 {[%clk 0:00:45]} 37. Bxe6+ {[%clk 0:00:07]}  Kh8 {[%clk 0:00:45]} 38. Qg3 {[%clk 0:00:07]}  Qxe4 {[%clk 0:00:41]} 39. Rd1 {[%clk 0:00:07]}  Rcd8 {[%clk 0:00:40]} 40. Rxd8 {[%clk 0:00:04]}  Rxd8 {[%clk 0:00:41]} 41. Qf2 {[%clk 0:00:04]}  Qxg6+ {[%clk 0:00:40]} 0-1


[Site "https://www.chess.com"]

[Event "Titled Tuesday Blitz October 18 Late 2022"]
[White "Ozates, Tuna"]
[Black "Roque Sola, Jose Luis"]
[WhiteFideId "6354521"]
[BlackFideId "5120390"]
[WhiteElo "2151"]
[BlackElo "2117"]
[Result "1-0"]
[Round "03"]
[TimeControl "180+1"]
[Date "2022.10.19"]
[WhiteClock "0:00:46"]
[BlackClock "0:00:02"]

1. d4 {[%clk 0:02:56]}  Nf6 {[%clk 0:02:58]} 2. Bg5 {[%clk 0:02:55]}  h6 {[%clk 0:02:52]} 3. Bxf6 {[%clk 0:02:55]}  exf6 {[%clk 0:02:53]} 4. e3 {[%clk 0:02:55]}  d5 {[%clk 0:02:53]} 5. g3 {[%clk 0:02:56]}  Bd6 {[%clk 0:02:50]} 6. Bg2 {[%clk 0:02:56]}  c6 {[%clk 0:02:50]} 7. Nd2 {[%clk 0:02:57]}  O-O {[%clk 0:02:50]} 8. c4 {[%clk 0:02:57]}  dxc4 {[%clk 0:02:34]} 9. Ne2 {[%clk 0:02:54]}  Be6 {[%clk 0:02:29]} 10. O-O {[%clk 0:02:54]}  Na6 {[%clk 0:02:19]} 11. a3 {[%clk 0:02:50]}  Nc7 {[%clk 0:02:18]} 12. Qc2 {[%clk 0:02:47]}  Qd7 {[%clk 0:02:16]} 13. Nxc4 {[%clk 0:02:46]}  Be7 {[%clk 0:01:58]} 14. Nf4 {[%clk 0:02:29]}  Bxc4 {[%clk 0:01:51]} 15. Qxc4 {[%clk 0:02:28]}  Bd6 {[%clk 0:01:48]} 16. Nd3 {[%clk 0:02:21]}  Ne6 {[%clk 0:01:16]} 17. Rfd1 {[%clk 0:02:19]}  Ng5 {[%clk 0:01:16]} 18. h4 {[%clk 0:02:05]}  Nh3+ {[%clk 0:01:06]} 19. Kh2 {[%clk 0:02:05]}  Nxf2 {[%clk 0:00:56]} 20. Nxf2 {[%clk 0:02:04]}  Qc7 {[%clk 0:00:55]} 21. Ne4 {[%clk 0:02:04]}  Rfe8 {[%clk 0:00:34]} 22. Rac1 {[%clk 0:01:58]}  Bxg3+ {[%clk 0:00:29]} 23. Nxg3 {[%clk 0:01:23]}  Rxe3 {[%clk 0:00:28]} 24. Rc3 {[%clk 0:01:17]}  Qxg3+ {[%clk 0:00:27]} 25. Kg1 {[%clk 0:01:17]}  Rxc3 {[%clk 0:00:26]} 26. bxc3 {[%clk 0:01:12]}  Qxh4 {[%clk 0:00:25]} 27. Rb1 {[%clk 0:01:08]}  Rb8 {[%clk 0:00:15]} 28. Qc5 {[%clk 0:01:01]}  Qg4 {[%clk 0:00:10]} 29. Re1 {[%clk 0:00:54]}  Qg3 {[%clk 0:00:08]} 30. Re2 {[%clk 0:00:51]}  Qd3 {[%clk 0:00:04]} 31. Qxa7 {[%clk 0:00:49]}  Qxe2 {[%clk 0:00:01]} 32. Qxb8+ {[%clk 0:00:48]}  Kh7 {[%clk 0:00:02]} 33. Qg3 {[%clk 0:00:46]} 1-0


[Site "https://www.chess.com"]

[Event "Titled Tuesday Blitz October 18 Late 2022"]
[White "Ozer, Omer Faruk"]
[Black "Ozen, Batuhan"]
[WhiteFideId "6354564"]
[BlackFideId "6345123"]
[WhiteElo "2260"]
[BlackElo "2410"]
[Result "1-0"]
[Round "03"]
[TimeControl "180+1"]
[Date "2022.10.19"]
[WhiteClock "0:01:31"]
[BlackClock "0:00:18"]

1. d4 {[%clk 0:03:00]}  Nf6 {[%clk 0:02:58]} 2. Nf3 {[%clk 0:03:00]}  c5 {[%clk 0:02:59]} 3. d5 {[%clk 0:03:00]}  d6 {[%clk 0:02:58]} 4. Nc3 {[%clk 0:02:57]}  e5 {[%clk 0:02:56]} 5. a4 {[%clk 0:02:54]}  Be7 {[%clk 0:02:56]} 6. Nd2 {[%clk 0:02:54]}  O-O {[%clk 0:02:55]} 7. e4 {[%clk 0:02:54]}  Ne8 {[%clk 0:02:55]} 8. Bd3 {[%clk 0:02:52]}  Bg5 {[%clk 0:02:54]} 9. O-O {[%clk 0:02:49]}  g6 {[%clk 0:02:43]} 10. g3 {[%clk 0:02:49]}  Bxd2 {[%clk 0:02:41]} 11. Bxd2 {[%clk 0:02:49]}  Ng7 {[%clk 0:02:37]} 12. f4 {[%clk 0:02:48]}  Nd7 {[%clk 0:02:26]} 13. f5 {[%clk 0:02:47]}  f6 {[%clk 0:02:22]} 14. h4 {[%clk 0:02:42]}  Rb8 {[%clk 0:02:07]} 15. Kh2 {[%clk 0:02:19]}  a6 {[%clk 0:02:06]} 16. a5 {[%clk 0:02:18]}  b5 {[%clk 0:01:55]} 17. axb6 {[%clk 0:02:18]}  Nxb6 {[%clk 0:01:48]} 18. b3 {[%clk 0:02:17]}  c4 {[%clk 0:01:20]} 19. bxc4 {[%clk 0:02:13]}  Qc7 {[%clk 0:01:19]} 20. Qe2 {[%clk 0:02:09]}  Nd7 {[%clk 0:01:14]} 21. Be3 {[%clk 0:02:07]}  Nc5 {[%clk 0:01:10]} 22. Bxc5 {[%clk 0:02:06]}  Qxc5 {[%clk 0:01:09]} 23. Na4 {[%clk 0:02:06]}  Qc7 {[%clk 0:00:57]} 24. Qe3 {[%clk 0:02:02]}  Bd7 {[%clk 0:00:53]} 25. c5 {[%clk 0:01:54]}  Bxa4 {[%clk 0:00:42]} 26. Rxa4 {[%clk 0:01:53]}  dxc5 {[%clk 0:00:35]} 27. Rxa6 {[%clk 0:01:52]}  gxf5 {[%clk 0:00:30]} 28. exf5 {[%clk 0:01:49]}  c4 {[%clk 0:00:28]} 29. Rc6 {[%clk 0:01:48]}  Qd7 {[%clk 0:00:23]} 30. Be4 {[%clk 0:01:42]}  Rfc8 {[%clk 0:00:19]} 31. Rxf6 {[%clk 0:01:38]}  Rb2 {[%clk 0:00:18]} 32. Rh6 {[%clk 0:01:31]} 1-0


[Site "https://www.chess.com"]

[Event "Titled Tuesday Blitz October 18 Late 2022"]
[White "P., Komal Kishore"]
[Black "Lorenzo De La Riva, Lazaro"]
[WhiteFideId "5016703"]
[BlackFideId "2268809"]
[WhiteElo "2108"]
[BlackElo "2325"]
[Result "0-1"]
[Round "03"]
[TimeControl "180+1"]
[Date "2022.10.19"]
[WhiteClock "0:00:03"]
[BlackClock "0:01:15"]

1. e4 {[%clk 0:03:00]}  e5 {[%clk 0:02:56]} 2. Nf3 {[%clk 0:03:00]}  Nc6 {[%clk 0:02:56]} 3. Bb5 {[%clk 0:03:00]}  a6 {[%clk 0:02:56]} 4. Ba4 {[%clk 0:03:00]}  d6 {[%clk 0:02:56]} 5. O-O {[%clk 0:02:59]}  Bg4 {[%clk 0:02:56]} 6. h3 {[%clk 0:02:58]}  h5 {[%clk 0:02:55]} 7. c3 {[%clk 0:02:55]}  Qf6 {[%clk 0:02:55]} 8. Bxc6+ {[%clk 0:02:39]}  bxc6 {[%clk 0:02:54]} 9. d4 {[%clk 0:02:40]}  Bxf3 {[%clk 0:02:51]} 10. Qxf3 {[%clk 0:02:39]}  Qxf3 {[%clk 0:02:51]} 11. gxf3 {[%clk 0:02:39]}  Ne7 {[%clk 0:02:44]} 12. Na3 {[%clk 0:02:25]}  Ng6 {[%clk 0:02:40]} 13. Nc4 {[%clk 0:02:20]}  f6 {[%clk 0:02:39]} 14. d5 {[%clk 0:01:59]}  cxd5 {[%clk 0:02:27]} 15. exd5 {[%clk 0:01:58]}  Nh4 {[%clk 0:02:25]} 16. f4 {[%clk 0:01:55]}  g5 {[%clk 0:02:15]} 17. fxg5 {[%clk 0:01:51]}  fxg5 {[%clk 0:02:16]} 18. f3 {[%clk 0:01:36]}  Be7 {[%clk 0:02:15]} 19. Na5 {[%clk 0:01:25]}  Kd7 {[%clk 0:02:10]} 20. Kf2 {[%clk 0:00:54]}  Raf8 {[%clk 0:02:03]} 21. Ke2 {[%clk 0:00:50]}  Rf5 {[%clk 0:02:03]} 22. Nc6 {[%clk 0:00:42]}  Rhf8 {[%clk 0:02:01]} 23. Be3 {[%clk 0:00:40]}  Nxf3 {[%clk 0:01:57]} 24. b4 {[%clk 0:00:20]}  g4 {[%clk 0:01:52]} 25. hxg4 {[%clk 0:00:19]}  hxg4 {[%clk 0:01:53]} 26. Rh1 {[%clk 0:00:16]}  g3 {[%clk 0:01:51]} 27. Rh7 {[%clk 0:00:12]}  R5f7 {[%clk 0:01:50]} 28. Rxf7 {[%clk 0:00:10]}  Rxf7 {[%clk 0:01:51]} 29. Kf1 {[%clk 0:00:09]}  Nh4+ {[%clk 0:01:43]} 30. Kg1 {[%clk 0:00:09]}  Rg7 {[%clk 0:01:31]} 31. Rf1 {[%clk 0:00:08]}  g2 {[%clk 0:01:23]} 32. Rf2 {[%clk 0:00:08]}  Rg3 {[%clk 0:01:24]} 33. Bd2 {[%clk 0:00:07]}  Nf3+ {[%clk 0:01:24]} 34. Rxf3 {[%clk 0:00:04]}  Rxf3 {[%clk 0:01:25]} 35. Kxg2 {[%clk 0:00:04]}  Rd3 {[%clk 0:01:25]} 36. Be1 {[%clk 0:00:04]}  Bg5 {[%clk 0:01:22]} 37. Nb8+ {[%clk 0:00:04]}  Kc8 {[%clk 0:01:21]} 38. Nxa6 {[%clk 0:00:05]}  Rxd5 {[%clk 0:01:16]} 39. c4 {[%clk 0:00:04]}  Rd1 {[%clk 0:01:16]} 40. Kf1 {[%clk 0:00:03]}  Bh4 {[%clk 0:01:15]} 0-1


[Site "https://www.chess.com"]

[Event "Titled Tuesday Blitz October 18 Late 2022"]
[White "Papayan, Oleg"]
[Black "Izuzquiza Gonzalez, Javier"]
[WhiteFideId "4193911"]
[BlackFideId "3101029"]
[WhiteElo "2153"]
[BlackElo "2034"]
[Result "1-0"]
[Round "03"]
[TimeControl "180+1"]
[Date "2022.10.19"]
[WhiteClock "0:00:11"]
[BlackClock "0:00:09"]

1. e4 {[%clk 0:03:00]}  c5 {[%clk 0:02:58]} 2. Nf3 {[%clk 0:02:49]}  e6 {[%clk 0:02:57]} 3. d4 {[%clk 0:02:46]}  cxd4 {[%clk 0:02:58]} 4. Nxd4 {[%clk 0:02:46]}  a6 {[%clk 0:02:58]} 5. Bd3 {[%clk 0:02:45]}  Nf6 {[%clk 0:02:58]} 6. O-O {[%clk 0:02:44]}  Qc7 {[%clk 0:02:56]} 7. Qe2 {[%clk 0:02:42]}  d6 {[%clk 0:02:54]} 8. c4 {[%clk 0:02:40]}  g6 {[%clk 0:02:51]} 9. Nc3 {[%clk 0:02:37]}  Bg7 {[%clk 0:02:51]} 10. Bg5 {[%clk 0:02:27]}  O-O {[%clk 0:02:41]} 11. Kh1 {[%clk 0:02:16]}  Nc6 {[%clk 0:02:38]} 12. Nxc6 {[%clk 0:02:12]}  bxc6 {[%clk 0:02:29]} 13. f4 {[%clk 0:02:11]}  Re8 {[%clk 0:02:17]} 14. Rae1 {[%clk 0:02:01]}  Nd7 {[%clk 0:02:14]} 15. Qf2 {[%clk 0:01:49]}  Rb8 {[%clk 0:02:05]} 16. f5 {[%clk 0:01:39]}  exf5 {[%clk 0:02:01]} 17. exf5 {[%clk 0:01:40]}  Ne5 {[%clk 0:02:00]} 18. f6 {[%clk 0:01:22]}  Bf8 {[%clk 0:01:54]} 19. Qh4 {[%clk 0:01:17]}  Be6 {[%clk 0:01:07]} 20. Bh6 {[%clk 0:01:00]}  Kh8 {[%clk 0:00:41]} 21. Bxf8 {[%clk 0:00:50]}  Rxf8 {[%clk 0:00:42]} 22. Qh6 {[%clk 0:00:47]}  Rg8 {[%clk 0:00:41]} 23. Rf4 {[%clk 0:00:39]}  Ng4 {[%clk 0:00:19]} 24. Qg5 {[%clk 0:00:38]}  h6 {[%clk 0:00:16]} 25. Qh4 {[%clk 0:00:25]}  g5 {[%clk 0:00:17]} 26. Qh5 {[%clk 0:00:25]}  gxf4 {[%clk 0:00:15]} 27. Ne4 {[%clk 0:00:12]}  d5 {[%clk 0:00:09]} 28. h3 {[%clk 0:00:10]}  dxe4 {[%clk 0:00:09]} 29. hxg4 {[%clk 0:00:10]}  exd3 {[%clk 0:00:09]} 30. Qxh6# {[%clk 0:00:11]} 1-0


[Site "https://www.chess.com"]

[Event "Titled Tuesday Blitz October 18 Late 2022"]
[White "Paravyan, David"]
[Black "Koziorowicz, Michal"]
[WhiteFideId "4194985"]
[BlackFideId "21809194"]
[WhiteElo "2555"]
[BlackElo "2220"]
[Result "0-1"]
[Round "03"]
[TimeControl "180+1"]
[Date "2022.10.18"]
[WhiteClock "0:00:00"]
[BlackClock "0:00:15"]

1. e4 {[%clk 0:02:59]}  c5 {[%clk 0:02:59]} 2. Nf3 {[%clk 0:02:58]}  d6 {[%clk 0:03:00]} 3. d4 {[%clk 0:02:59]}  cxd4 {[%clk 0:03:01]} 4. Nxd4 {[%clk 0:02:59]}  Nf6 {[%clk 0:03:01]} 5. Nc3 {[%clk 0:02:56]}  g6 {[%clk 0:03:02]} 6. Be3 {[%clk 0:02:53]}  Bg7 {[%clk 0:03:02]} 7. f3 {[%clk 0:02:53]}  O-O {[%clk 0:03:03]} 8. Bc4 {[%clk 0:02:51]}  Nc6 {[%clk 0:03:03]} 9. Bb3 {[%clk 0:02:50]}  Bd7 {[%clk 0:03:04]} 10. h4 {[%clk 0:02:45]}  h5 {[%clk 0:03:04]} 11. Qd2 {[%clk 0:02:34]}  Rc8 {[%clk 0:03:04]} 12. O-O-O {[%clk 0:02:34]}  Ne5 {[%clk 0:03:04]} 13. Bg5 {[%clk 0:02:34]}  Rc5 {[%clk 0:03:04]} 14. g4 {[%clk 0:02:32]}  hxg4 {[%clk 0:03:04]} 15. h5 {[%clk 0:02:32]}  Nxh5 {[%clk 0:03:04]} 16. Nd5 {[%clk 0:02:30]}  Re8 {[%clk 0:02:43]} 17. Rxh5 {[%clk 0:02:29]}  gxh5 {[%clk 0:02:43]} 18. Qh2 {[%clk 0:02:29]}  gxf3 {[%clk 0:01:43]} 19. Qxh5 {[%clk 0:02:22]}  Bg4 {[%clk 0:01:43]} 20. Qh4 {[%clk 0:02:23]}  f2 {[%clk 0:01:43]} 21. Rh1 {[%clk 0:02:15]}  Qa5 {[%clk 0:01:26]} 22. c3 {[%clk 0:01:23]}  Qa6 {[%clk 0:00:36]} 23. Ne3 {[%clk 0:00:49]}  Qd3 {[%clk 0:00:25]} 24. Bc2 {[%clk 0:00:37]}  Rxc3 {[%clk 0:00:25]} 25. bxc3 {[%clk 0:00:34]}  Qxc3 {[%clk 0:00:26]} 26. Kb1 {[%clk 0:00:16]}  Nd3 {[%clk 0:00:24]} 27. Qh7+ {[%clk 0:00:06]}  Kf8 {[%clk 0:00:24]} 28. Bxd3 {[%clk 0:00:04]}  Qxd4 {[%clk 0:00:24]} 29. Qxg7+ {[%clk 0:00:02]}  Kxg7 {[%clk 0:00:23]} 30. Bh6+ {[%clk 0:00:02]}  Kg8 {[%clk 0:00:22]} 31. Bc2 {[%clk 0:00:00]}  Bf3 {[%clk 0:00:15]} 0-1


[Site "https://www.chess.com"]

[Event "Titled Tuesday Blitz October 18 Late 2022"]
[White "Poltorak, Sebastian"]
[Black "Bayo Milagro, Alvaro"]
[WhiteFideId "1199498"]
[BlackFideId "22275240"]
[WhiteElo "2527"]
[BlackElo "2623"]
[Result "0-1"]
[Round "03"]
[TimeControl "180+1"]
[Date "2022.10.19"]
[WhiteClock "0:00:08"]
[BlackClock "0:00:06"]

1. d4 {[%clk 0:03:00]}  Nf6 {[%clk 0:02:58]} 2. c4 {[%clk 0:03:00]}  c5 {[%clk 0:02:58]} 3. d5 {[%clk 0:02:59]}  e5 {[%clk 0:02:59]} 4. Nc3 {[%clk 0:02:58]}  d6 {[%clk 0:02:59]} 5. e4 {[%clk 0:02:58]}  Be7 {[%clk 0:03:00]} 6. Bd3 {[%clk 0:02:58]}  Nbd7 {[%clk 0:03:00]} 7. Nge2 {[%clk 0:02:39]}  Nf8 {[%clk 0:02:58]} 8. O-O {[%clk 0:02:38]}  Ng6 {[%clk 0:02:57]} 9. f4 {[%clk 0:02:38]}  exf4 {[%clk 0:02:56]} 10. Bxf4 {[%clk 0:02:38]}  Nxf4 {[%clk 0:02:56]} 11. Nxf4 {[%clk 0:02:39]}  O-O {[%clk 0:02:56]} 12. Qc2 {[%clk 0:02:36]}  h6 {[%clk 0:02:49]} 13. Rae1 {[%clk 0:02:35]}  Ng4 {[%clk 0:02:48]} 14. h3 {[%clk 0:02:26]}  Ne5 {[%clk 0:02:47]} 15. b3 {[%clk 0:02:24]}  a6 {[%clk 0:02:46]} 16. Be2 {[%clk 0:02:22]}  Rb8 {[%clk 0:02:45]} 17. Nd3 {[%clk 0:02:22]}  Bf6 {[%clk 0:02:44]} 18. Nd1 {[%clk 0:02:16]}  b5 {[%clk 0:02:43]} 19. Nxe5 {[%clk 0:02:15]}  Bxe5 {[%clk 0:02:43]} 20. Nf2 {[%clk 0:02:11]}  Qh4 {[%clk 0:02:41]} 21. Nh1 {[%clk 0:01:15]}  Bd4+ {[%clk 0:02:19]} 22. Kh2 {[%clk 0:01:13]}  bxc4 {[%clk 0:02:13]} 23. Bxc4 {[%clk 0:01:09]}  a5 {[%clk 0:02:10]} 24. a4 {[%clk 0:01:05]}  Bd7 {[%clk 0:02:10]} 25. Qd2 {[%clk 0:00:57]}  Rbe8 {[%clk 0:02:03]} 26. Qd3 {[%clk 0:00:32]}  f5 {[%clk 0:01:52]} 27. g3 {[%clk 0:00:28]}  Qg5 {[%clk 0:01:36]} 28. Bb5 {[%clk 0:00:11]}  fxe4 {[%clk 0:01:30]} 29. Rxf8+ {[%clk 0:00:12]}  Rxf8 {[%clk 0:01:24]} 30. Qxe4 {[%clk 0:00:12]}  Bf5 {[%clk 0:00:43]} 31. Qg2 {[%clk 0:00:12]}  Be5 {[%clk 0:00:29]} 32. Nf2 {[%clk 0:00:10]}  h5 {[%clk 0:00:27]} 33. Kh1 {[%clk 0:00:03]}  Qxg3 {[%clk 0:00:21]} 34. Qxg3 {[%clk 0:00:03]}  Bxg3 {[%clk 0:00:22]} 35. Rf1 {[%clk 0:00:03]}  Bc2 {[%clk 0:00:13]} 36. Kg2 {[%clk 0:00:02]}  Bxf2 {[%clk 0:00:10]} 37. Rxf2 {[%clk 0:00:02]}  Rxf2+ {[%clk 0:00:10]} 38. Kxf2 {[%clk 0:00:03]}  Bxb3 {[%clk 0:00:10]} 39. Bc6 {[%clk 0:00:04]}  Kf7 {[%clk 0:00:09]} 40. Ke3 {[%clk 0:00:03]}  Kf6 {[%clk 0:00:09]} 41. Kd3 {[%clk 0:00:03]}  h4 {[%clk 0:00:06]} 42. Kc3 {[%clk 0:00:02]}  Ba2 {[%clk 0:00:06]} 43. Kb2 {[%clk 0:00:02]}  Bc4 {[%clk 0:00:06]} 44. Kc3 {[%clk 0:00:03]}  Bf1 {[%clk 0:00:05]} 45. Bb5 {[%clk 0:00:03]}  Bxh3 {[%clk 0:00:05]} 46. Be2 {[%clk 0:00:02]}  Ke5 {[%clk 0:00:05]} 47. Kc4 {[%clk 0:00:02]}  Bd7 {[%clk 0:00:04]} 48. Bd1 {[%clk 0:00:02]}  g5 {[%clk 0:00:04]} 49. Bf3 {[%clk 0:00:02]}  g4 {[%clk 0:00:05]} 50. Bh1 {[%clk 0:00:03]}  h3 {[%clk 0:00:04]} 51. Kd3 {[%clk 0:00:04]}  g3 {[%clk 0:00:04]} 52. Ke3 {[%clk 0:00:04]}  g2 {[%clk 0:00:05]} 53. Kf2 {[%clk 0:00:05]}  gxh1=Q {[%clk 0:00:05]} 54. Kg3 {[%clk 0:00:06]}  Qg2+ {[%clk 0:00:05]} 55. Kh4 {[%clk 0:00:07]}  h2 {[%clk 0:00:06]} 56. Kh5 {[%clk 0:00:08]}  h1=Q# {[%clk 0:00:06]} 0-1


[Site "https://www.chess.com"]

[Event "Titled Tuesday Blitz October 18 Late 2022"]
[White "Rangel, Daniel"]
[Black "Fernandez Hernandez, Gerardo"]
[WhiteFideId "2124475"]
[BlackFideId "2207400"]
[WhiteElo "2225"]
[BlackElo "2195"]
[Result "1-0"]
[Round "03"]
[TimeControl "180+1"]
[Date "2022.10.19"]
[WhiteClock "0:00:27"]
[BlackClock "0:00:01"]

1. e4 {[%clk 0:03:00]}  e6 {[%clk 0:02:59]} 2. d4 {[%clk 0:02:55]}  d5 {[%clk 0:03:00]} 3. exd5 {[%clk 0:02:53]}  exd5 {[%clk 0:03:00]} 4. c4 {[%clk 0:02:54]}  Nf6 {[%clk 0:02:58]} 5. cxd5 {[%clk 0:02:42]}  Bb4+ {[%clk 0:02:52]} 6. Nc3 {[%clk 0:02:43]}  O-O {[%clk 0:02:50]} 7. Nf3 {[%clk 0:02:39]}  Bg4 {[%clk 0:02:39]} 8. Be2 {[%clk 0:02:22]}  Re8 {[%clk 0:02:34]} 9. O-O {[%clk 0:02:18]}  Nxd5 {[%clk 0:02:29]} 10. Bd2 {[%clk 0:02:15]}  Nc6 {[%clk 0:02:10]} 11. h3 {[%clk 0:02:03]}  Bh5 {[%clk 0:01:59]} 12. Re1 {[%clk 0:01:52]}  Nf6 {[%clk 0:01:36]} 13. a3 {[%clk 0:01:40]}  Bxc3 {[%clk 0:01:29]} 14. bxc3 {[%clk 0:01:39]}  Ne4 {[%clk 0:01:17]} 15. Qc2 {[%clk 0:01:15]}  Bg6 {[%clk 0:00:53]} 16. Bd3 {[%clk 0:01:10]}  Nxd2 {[%clk 0:00:52]} 17. Nxd2 {[%clk 0:01:11]}  Qd7 {[%clk 0:00:45]} 18. Nf1 {[%clk 0:01:03]}  Na5 {[%clk 0:00:28]} 19. Ne3 {[%clk 0:00:59]}  Bxd3 {[%clk 0:00:22]} 20. Qxd3 {[%clk 0:01:00]}  c5 {[%clk 0:00:22]} 21. d5 {[%clk 0:00:58]}  b5 {[%clk 0:00:09]} 22. Rad1 {[%clk 0:00:53]}  c4 {[%clk 0:00:09]} 23. Qe2 {[%clk 0:00:46]}  Nb3 {[%clk 0:00:08]} 24. Qf3 {[%clk 0:00:45]}  Rad8 {[%clk 0:00:07]} 25. Nf5 {[%clk 0:00:44]}  Nc5 {[%clk 0:00:05]} 26. Qg4 {[%clk 0:00:42]}  g6 {[%clk 0:00:04]} 27. Nh6+ {[%clk 0:00:42]}  Kg7 {[%clk 0:00:04]} 28. Qh4 {[%clk 0:00:32]}  Rxe1+ {[%clk 0:00:03]} 29. Rxe1 {[%clk 0:00:33]}  Re8 {[%clk 0:00:03]} 30. Rd1 {[%clk 0:00:29]}  Re4 {[%clk 0:00:02]} 31. Ng4 {[%clk 0:00:28]}  f5 {[%clk 0:00:02]} 32. Qf6+ {[%clk 0:00:27]}  Kg8 {[%clk 0:00:01]} 33. Nh6# {[%clk 0:00:27]} 1-0


[Site "https://www.chess.com"]

[Event "Titled Tuesday Blitz October 18 Late 2022"]
[White "Remolar Gallen, Jose"]
[Black "Von Buelow, Georg"]
[WhiteFideId "2215187"]
[BlackFideId "4620658"]
[WhiteElo "2214"]
[BlackElo "2236"]
[Result "1-0"]
[Round "03"]
[TimeControl "180+1"]
[Date "2022.10.19"]
[WhiteClock "0:01:15"]
[BlackClock "0:02:13"]

1. d4 {[%clk 0:03:00]}  Nf6 {[%clk 0:02:59]} 2. Nf3 {[%clk 0:02:58]}  d5 {[%clk 0:02:58]} 3. c4 {[%clk 0:02:58]}  e6 {[%clk 0:02:58]} 4. Nc3 {[%clk 0:02:58]}  dxc4 {[%clk 0:02:59]} 5. e3 {[%clk 0:02:55]}  a6 {[%clk 0:02:53]} 6. Bxc4 {[%clk 0:02:54]}  c5 {[%clk 0:02:52]} 7. O-O {[%clk 0:02:54]}  b5 {[%clk 0:02:52]} 8. Bb3 {[%clk 0:02:53]}  Bb7 {[%clk 0:02:52]} 9. Qe2 {[%clk 0:02:52]}  Nbd7 {[%clk 0:02:49]} 10. Rd1 {[%clk 0:02:52]}  Qc7 {[%clk 0:02:47]} 11. d5 {[%clk 0:02:50]}  exd5 {[%clk 0:02:46]} 12. Nxd5 {[%clk 0:02:51]}  Nxd5 {[%clk 0:02:47]} 13. Bxd5 {[%clk 0:02:52]}  Bxd5 {[%clk 0:02:48]} 14. Rxd5 {[%clk 0:02:53]}  Nf6 {[%clk 0:02:48]} 15. Re5+ {[%clk 0:02:45]}  Be7 {[%clk 0:02:48]} 16. e4 {[%clk 0:02:42]}  O-O {[%clk 0:02:46]} 17. Bf4 {[%clk 0:02:41]}  Qb7 {[%clk 0:02:40]} 18. Re1 {[%clk 0:02:26]}  Bd6 {[%clk 0:02:19]} 19. Rf5 {[%clk 0:02:26]}  Bxf4 {[%clk 0:02:20]} 20. Rxf4 {[%clk 0:02:27]}  Rae8 {[%clk 0:02:18]} 21. e5 {[%clk 0:02:14]}  Nd5 {[%clk 0:02:15]} 22. Rh4 {[%clk 0:02:09]}  Ne7 {[%clk 0:02:11]} 23. Rxh7 {[%clk 0:01:22]}  Kxh7 {[%clk 0:02:12]} 24. Ng5+ {[%clk 0:01:21]}  Kg6 {[%clk 0:02:13]} 25. Qg4 {[%clk 0:01:15]} 1-0


[Site "https://www.chess.com"]

[Event "Titled Tuesday Blitz October 18 Late 2022"]
[White "Riehle, Marco"]
[Black "Keymer, Vincent"]
[WhiteFideId "12904392"]
[BlackFideId "12940690"]
[WhiteElo "2462"]
[BlackElo "2600"]
[Result "0-1"]
[Round "03"]
[TimeControl "180+1"]
[Date "2022.10.18"]
[WhiteClock "0:00:34"]
[BlackClock "0:00:27"]

1. e4 {[%clk 0:03:00]}  c5 {[%clk 0:02:59]} 2. a3 {[%clk 0:02:58]}  e6 {[%clk 0:02:51]} 3. b4 {[%clk 0:02:58]}  d5 {[%clk 0:02:49]} 4. exd5 {[%clk 0:02:57]}  exd5 {[%clk 0:02:45]} 5. Nf3 {[%clk 0:02:57]}  Nf6 {[%clk 0:02:40]} 6. Bb5+ {[%clk 0:02:50]}  Bd7 {[%clk 0:02:40]} 7. Bxd7+ {[%clk 0:02:46]}  Nbxd7 {[%clk 0:02:41]} 8. O-O {[%clk 0:02:46]}  Be7 {[%clk 0:02:40]} 9. d4 {[%clk 0:02:33]}  cxb4 {[%clk 0:02:36]} 10. axb4 {[%clk 0:02:27]}  O-O {[%clk 0:02:36]} 11. c3 {[%clk 0:02:27]}  Ne4 {[%clk 0:02:33]} 12. Qd3 {[%clk 0:02:22]}  Qc7 {[%clk 0:02:27]} 13. Re1 {[%clk 0:02:15]}  Rfe8 {[%clk 0:02:27]} 14. Bb2 {[%clk 0:01:54]}  Bd6 {[%clk 0:01:26]} 15. Nbd2 {[%clk 0:01:46]}  Ndf6 {[%clk 0:01:26]} 16. h3 {[%clk 0:01:39]}  a6 {[%clk 0:01:25]} 17. Nb3 {[%clk 0:01:36]}  Re7 {[%clk 0:01:20]} 18. Nc5 {[%clk 0:01:32]}  Rae8 {[%clk 0:01:20]} 19. Red1 {[%clk 0:01:22]}  h6 {[%clk 0:01:19]} 20. Nd2 {[%clk 0:01:05]}  Nh5 {[%clk 0:00:51]} 21. Ndxe4 {[%clk 0:00:59]}  dxe4 {[%clk 0:00:51]} 22. Qe3 {[%clk 0:00:53]}  Bf4 {[%clk 0:00:30]} 23. Qe2 {[%clk 0:00:52]}  Nf6 {[%clk 0:00:31]} 24. c4 {[%clk 0:00:48]}  e3 {[%clk 0:00:30]} 25. f3 {[%clk 0:00:38]}  Bh2+ {[%clk 0:00:27]} 26. Kf1 {[%clk 0:00:36]}  Nh5 {[%clk 0:00:28]} 27. Ne4 {[%clk 0:00:34]}  Rxe4 {[%clk 0:00:28]} 28. fxe4 {[%clk 0:00:35]}  Ng3+ {[%clk 0:00:28]} 29. Ke1 {[%clk 0:00:36]}  Nxe2 {[%clk 0:00:28]} 30. Kxe2 {[%clk 0:00:37]}  Qg3 {[%clk 0:00:28]} 31. Rf1 {[%clk 0:00:35]}  Qxg2+ {[%clk 0:00:28]} 32. Kxe3 {[%clk 0:00:34]}  Rxe4+ {[%clk 0:00:27]} 0-1


[Site "https://www.chess.com"]